Cogmind - Beta 15 @@@ ROGUE MODE // 2025.10.20 @ 22:42:35 Player: Kappa Result: Destroyed by H-66 Slayer with Gauss Rifle Performance ------------- Evolutions (5) 2500 Regions Visited (10) 2000 Robots Destroyed (23) 115 Value Destroyed (586) 586 Prototype IDs (29) 580 Alien Tech Used (0) 0 Bonus (1000) 1000 TOTAL SCORE: 6781 Bonus ------- Entered Garrisons 200 Used RIF Installer 500 Aligned with FarCom 300 Cogmind --------- Core Integrity 0/1000 Matter 19/300 Energy 34/100 System Corruption 2% Temperature Cool (18) Movement Core (150) Ox2 Location -5/Garrison Parts ------- > --- POWER (3) -------- (None) > --- PROPULSION (6) --- (None) > --- UTILITY (4) ------ (None) > --- WEAPON (4) ------- Long-range Proton Cannon > --- INVENTORY (5) ---- Advanced Plasma Cannon Mass Driver Peak State ------------ > --- POWER ------------ Ion Engine Nuclear Core > --- PROPULSION ------- Hover Unit Improved Hover Unit Airjet Aerolev Unit > --- UTILITY ---------- Improved Sensor Array Reaction Control System Trap Reconfigurator > --- WEAPON ----------- Pulse Rifle High-powered Shotgun > --- INVENTORY -------- Ion Engine Improved Sensor Array Hardened Medium Armor Plating Hardened Medium Armor Plating Rocket Launcher [Rating: 36] Favorites ----------- Power Ion Engine Engine Ion Engine Power Core Nuclear Core Propulsion Hover Unit Treads Medium Treads Hover Unit Hover Unit Utility Visual Processing Unit Device Improved Terrain Scanner Storage Small Storage Unit Processor Visual Processing Unit Hackware System Shield Protection Hardened Medium Armor Plating Weapon High-powered Shotgun Energy Gun EM Pulse Gun Energy Cannon Long-range Proton Cannon Ballistic Gun High-powered Shotgun Ballistic Cannon Flak Cannon Launcher Rocket Launcher Build | -11 -10 -9 -9 -9 -8 -8 -7 -6 -5 -5 ------- Run | Yrd Mat Mat Min Exi Min Mat Fac Fac Fac Gar Slots Evolved 10 | . . 2 . . . 2 2 2 2 . Power 2 | . . . . . . 1 . 1 . . Propulsion 4 | . . 2 . . . . . . 2 . Utility 2 | . . . . . . 1 1 . . . Weapon 2 | . . . . . . . 1 1 . . Parts Attached 49 | 7 3 3 1 . 1 17 9 1 5 2 Power 5 | 1 . . . . . 3 1 . . . Engine 4 | 1 . . . . . 2 1 . . . Core 1 | . . . . . . 1 . . . . Reactor . | . . . . . . . . . . . Propulsion 16 | 2 2 3 . . . 3 3 . 3 . Treads 4 | 2 . . . . . . 2 . . . Leg . | . . . . . . . . . . . Wheel . | . . . . . . . . . . . Hover 12 | . 2 3 . . . 3 1 . 3 . Flight . | . . . . . . . . . . . Utility 14 | 2 1 . . . 1 6 3 . 1 . Device 7 | 1 1 . . . 1 3 1 . . . Storage 1 | 1 . . . . . . . . . . Processor 3 | . . . . . . 2 1 . . . Hackware 1 | . . . . . . . 1 . . . Protection 2 | . . . . . . 1 . . 1 . Artifact . | . . . . . . . . . . . Weapon 14 | 2 . . 1 . . 5 2 1 1 2 Energy Gun 5 | 2 . . . . . 1 . 1 1 . Energy Cannon 1 | . . . . . . . . . . 1 Ballistic Gun 5 | . . . . . . 4 . . . 1 Ballistic Cannon 2 | . . . . . . . 2 . . . Launcher 1 | . . . 1 . . . . . . . Special Weapon . | . . . . . . . . . . . Impact Weapon . | . . . . . . . . . . . Slashing Weapon . | . . . . . . . . . . . Piercing Weapon . | . . . . . . . . . . . Special Melee Weapon . | . . . . . . . . . . . Unidentified Prototypes 3 | . . . . . . 1 2 . . . Parts Lost 30 | . . . . . . 12 9 2 1 6 Power 5 | . . . . . . 3 2 . . . Propulsion 11 | . . . . . . 4 3 1 1 2 Utility 9 | . . . . . . 4 3 . . 2 Weapon 5 | . . . . . . 1 1 1 . 2 Highest Loss Streak 6 | . . . . . . 4 5 1 1 6 To Critical Strikes . | . . . . . . . . . . . Average Backups 4 | . 3 3 5 5 5 4 4 3 3 4 Power . | . 1 1 4 3 3 1 . . . . Propulsion . | . 2 2 1 1 1 . . . . . Utility 1 | . . . . . 1 2 1 2 . . Weapon 1 | . . . . . . . 2 1 3 4 Tool/Special . | . . . . . . . . . . . Unused Backups 10 | . . . . 1 . 3 2 . 2 2 Power 2 | . . . . 1 . 1 . . . . Propulsion . | . . . . . . . . . . . Utility 5 | . . . . . . 2 2 . 1 . Weapon 3 | . . . . . . . . . 1 2 Tool/Special . | . . . . . . . . . . . Average Slot Usage (%) 60 | . 100 98 100 100 100 96 45 24 19 21 Engine 5 | . 14 11 11 11 11 13 2 . . . Treads 1 | . 6 . . . . . 1 10 . . Hover 21 | . 21 42 44 44 44 34 10 . 9 10 Device 10 | . 23 22 22 22 22 20 6 . . . Processor 6 | . . . . . . 4 10 13 6 4 Protection 1 | . . . . . . . 3 . 1 4 Energy Gun 4 | . 28 22 15 11 11 5 . . . . Ballistic Gun 2 | . . . . . . 7 3 . . . Launcher 2 | . . . 6 11 11 4 . . . . Peak Build Rating 36 | 9 9 11 12 13 20 36 26 15 27 21 Average Rating 19 | 5 8 10 11 12 20 30 19 13 17 19 On Entrance 12 | . 9 9 11 12 13 20 19 14 10 21 Naked Turns 1 | . . . . . . . . . . 1 Heaviest Build 22 | 15 15 11 13 13 13 22 17 4 7 7 Greatest Support 56 | 40 40 24 24 24 24 29 56 56 11 11 Greatest Overweight (x) 5 | . 4 . . . . 1 5 . . 1 Average Overweight (x) . | . . . . . . . . . . . Largest Inventory Capacity 8 | 8 8 5 5 5 5 5 5 5 5 5 Average Capacity 5 | 6 5 5 5 5 5 5 5 5 5 5 Most Carried 5 | 1 5 5 5 5 5 5 5 5 5 5 Average Carried 4 | . 4 3 5 4 5 4 4 3 3 4 Final Capacity 8 | 8 5 5 5 5 5 5 5 5 5 5 Final Carried 5 | 1 5 5 5 5 5 5 4 3 5 2 Class Distribution -------------------- 52% | Mutant 46% | Scout Dominant Class ---------------- Mutant | -10/Materials Mutant | -9/Materials Mutant | -9/Mines Mutant | -9/Exiles Scout | -8/Mines Scout | -8/Materials Scout | -7/Factory Mutant | -6/Factory Mutant | -5/Factory Mutant | -5/Garrison Resources | -11 -10 -9 -9 -9 -8 -8 -7 -6 -5 -5 ----------- Run | Yrd Mat Mat Min Exi Min Mat Fac Fac Fac Gar Matter Collected 773 | 252 . 27 . . 71 374 18 . . 31 Remotely . | . . . . . . . . . . . Salvage Created 438 | 47 . 47 . . 29 276 18 . . 21 Parts 37 | 7 . 7 . . 4 16 1 . . 2 Haulers Intercepted . | . . . . . . . . . . . Recyclers Shooed . | . . . . . . . . . . . Parts Field Recycled . | . . . . . . . . . . . Retrieved Matter . | . . . . . . . . . . . Parts Self-Destructed . | . . . . . . . . . . . Prevented . | . . . . . . . . . . . Kills | -11 -10 -9 -9 -9 -8 -8 -7 -6 -5 -5 ------- Run | Yrd Mat Mat Min Exi Min Mat Fac Fac Fac Gar Combat Hostiles Destroyed 14 | . . 3 . . 4 5 1 . . 1 Guns 8 | . . 3 . . . 4 . . . 1 Cannons 1 | . . . . . . . 1 . . . AOE 5 | . . . . . 4 1 . . . . Classes Destroyed 9 | 1 . 1 . . 1 5 1 . . . Builder 5 | . . . . . 1 4 . . . . Tunneler 2 | 2 . . . . . . . . . . Recycler 1 | . . . . . . 1 . . . . Watcher 1 | . . . . . . 1 . . . . Swarmer 8 | . . 3 . . 4 . . . . 1 Grunt 1 | . . . . . . 1 . . . . Duelist 1 | . . . . . . 1 . . . . Sentry 3 | . . . . . . 3 . . . . Programmer 1 | . . . . . . . 1 . . . Best Kill Streak 6 | 2 . 2 . . 5 6 1 . . 1 Combat Bots Only 4 | . . 2 . . 4 2 1 . . 1 Max Kills in Single Turn 3 | 1 . 1 . . 3 3 1 . . 1 Gunslinging . | . . . . . . . . . . . Exploded 3 | . . . . . 3 1 . . . . Melee . | . . . . . . . . . . . Uniques/NPCs Destroyed . | . . . . . . . . . . . Combat | -11 -10 -9 -9 -9 -8 -8 -7 -6 -5 -5 -------- Run | Yrd Mat Mat Min Exi Min Mat Fac Fac Fac Gar Hostile Shots Fired 362 | . . 10 . . 7 60 107 38 6 134 Missed 120 | . . 3 . . 6 21 38 12 1 39 Hits 242 | . . 7 . . 1 39 69 26 5 95 Melee 8 | . . . . . . 8 . . . . Projectile 234 | . . 7 . . 1 31 69 26 5 95 Critical Strikes 10 | . . . . . . 3 5 . 2 . Part Disruptions 1 | . . . . . . . 1 . . . Damage Taken 4683 | . . 56 . . 9 1398 989 411 126 1694 Core 1736 | . . 8 . . . 183 335 196 43 971 Absorbed by Shields 9 | . . . . . . . . . . 9 Regen/Repaired (Parts) 32 | . . . . . . 32 . . . . Core Remaining (%) 82 | 100 100 . . . 98 66 52 76 . . Volleys Fired 76 | 2 4 7 . . 4 40 7 4 . 8 Largest 2 | 2 2 2 . . 2 2 2 1 . 1 Hottest 88 | 80 80 80 . . 73 88 77 55 . 81 Shots Fired 115 | 4 8 14 . . 8 60 9 4 . 8 Gun 88 | 4 8 14 . . 4 45 2 4 . 7 Cannon 8 | . . . . . . . 7 . . 1 Launcher 19 | . . . . . 4 15 . . . . Special . | . . . . . . . . . . . Kinetic 39 | . . . . . . 26 9 . . 4 Thermal 18 | . . . . . . 18 . . . . Explosive 19 | . . . . . 4 15 . . . . Electromagnetic 39 | 4 8 14 . . 4 1 . 4 . 4 Robot Hit Streak 11 | 4 . 6 . . 1 11 6 6 . 3 Robot Miss Streak 7 | . . 3 . . 3 2 7 . . 3 Penetration Max . | . . . . . . . . . . . Secondary Targets 1 | . . 1 . . . . . . . . Max Gunslinging Chain 1 | . . 1 . . . . . . . . Shots Hit Robots 68 | 4 . 7 . . 1 42 6 4 . 4 Core Hits 39 | 2 . 3 . . 5 21 4 . 1 3 Critical Kills 1 | . . . . . . 1 . . . . Critical Parts Destroyed . | . . . . . . . . . . . Critical Strikes 1 | . . . . . . 1 . . . . Destroy 1 | . . . . . . 1 . . . . Melee Attacks . | . . . . . . . . . . . Impact . | . . . . . . . . . . . Slashing . | . . . . . . . . . . . Piercing . | . . . . . . . . . . . Sneak Attacks . | . . . . . . . . . . . Combat Hostiles . | . . . . . . . . . . . Follow-up Attacks . | . . . . . . . . . . . Damage Inflicted 1998 | 50 . 79 . . 263 1230 135 82 44 115 Guns 1011 | 50 . 79 . . . 686 36 82 . 78 Cannons 134 | . . . . . . . 97 . . 37 Explosions 807 | . . . . . 263 544 . . . . Melee . | . . . . . . . . . . . Ramming 46 | . . . . . . . 2 . 44 . Kinetic 644 | . . . . . . 444 133 . . 67 Thermal 605 | . . . . . . 605 . . . . Explosive 444 | . . . . . 263 181 . . . . Electromagnetic 259 | 50 . 79 . . . . . 82 . 48 Impact . | . . . . . . . . . . . Slashing . | . . . . . . . . . . . Piercing . | . . . . . . . . . . . Highest Corruption 21 | . . . . . . 21 8 . 2 2 Average Corruption 5 | . . . . . . 14 3 . 2 2 Corruption Purged . | . . . . . . . . . . . Corruption Blocked . | . . . . . . . . . . . Effects 40 | . . . . . . 22 10 . 4 4 Message Errors 13 | . . . . . . 7 1 . 3 2 Matter Fused 9 | . . . . . . 6 3 . . . Heat Flow Errors 7 | . . . . . . 3 3 . . 1 Energy Discharges 2 | . . . . . . 1 1 . . . Parts Rejected 1 | . . . . . . . 1 . . . Parts Fused 1 | . . . . . . . 1 . . . Data Loss (minor) 4 | . . . . . . 3 . . . 1 Data Loss (major) 1 | . . . . . . 1 . . . . Alerts 1 | . . . . . . . . . 1 . Misdirections 1 | . . . . . . 1 . . . . Overload Shots . | . . . . . . . . . . . Overflow Damage 202 | . . . . . . 202 . . . . Projectiles . | . . . . . . . . . . . Explosions 202 | . . . . . . 202 . . . . Melee . | . . . . . . . . . . . Knockbacks 4 | . . . . . . . 2 . 2 . Impact 2 | . . . . . . . . . 2 . Kinetic 2 | . . . . . . . 2 . . . Secondary . | . . . . . . . . . . . Self-Inflicted Damage 216 | . . . . . . 197 . . 19 . Shots 4 | . . . . . . 4 . . . . Rammed 13 | . . . . . . . 1 . 12 . Targets Rammed 13 | . . . . . . . 1 . 12 . Kicked . | . . . . . . . . . . . Crushed . | . . . . . . . . . . . Highest Temperature 363 | 36 50 105 . . 64 363 163 . . 120 Average Temperature 81 | 20 27 51 . . 34 98 64 . . 55 Received Heat Transfer 339 | . . . . . . 144 6 9 . 180 Effects 5 | . . . . . . 5 . . . . Interference 5 | . . . . . . 5 . . . . Siege Activations . | . . . . . . . . . . . Martial Activations . | . . . . . . . . . . . Shielding Activations . | . . . . . . . . . . . Robots Disrupted . | . . . . . . . . . . . Combat Hostiles . | . . . . . . . . . . . Robots Corrupted . | . . . . . . . . . . . Combat Hostiles . | . . . . . . . . . . . Parts Fried . | . . . . . . . . . . . Impact Corruptions . | . . . . . . . . . . . Robots Melted . | . . . . . . . . . . . Combat Hostiles . | . . . . . . . . . . . Parts Melted . | . . . . . . . . . . . Heat Transferred 718 | . . . . . . 718 . . . . Parts Sabotaged . | . . . . . . . . . . . Parts Stolen . | . . . . . . . . . . . Parts Stripped . | . . . . . . . . . . . Power Chain Reactions . | . . . . . . . . . . . Alert | -11 -10 -9 -9 -9 -8 -8 -7 -6 -5 -5 ------- Run | Yrd Mat Mat Min Exi Min Mat Fac Fac Fac Gar Maximum Alert Level 1 | . . . . . . 1 . . . . Low Security (%) 99 | 100 100 100 100 . 100 99 100 100 100 100 Level 1 . | . . . . . . . . . . . Level 2 . | . . . . . . . . . . . Level 3 . | . . . . . . . . . . . Level 4 . | . . . . . . . . . . . Level 5 . | . . . . . . . . . . . High Security . | . . . . . . . . . . . Max Security . | . . . . . . . . . . . Peak Influence 201 | 10 15 75 25 . 122 201 88 15 15 20 Initial 88 | . . 1 25 . . . 88 . 7 9 Average 25 | 1 3 28 12 . 37 77 10 . . 8 Influence Increases 1183 | 10 35 85 . . 122 667 189 16 39 20 Destroy 0b10 Robot/C 280 | . . 60 . . 80 100 20 . . 20 Destroy 0b10 Robot/NC 45 | 10 . . . . 5 30 . . . . Destroy Leader 72 | . . 10 . . 10 42 10 . . . Trap Triggered on 0b10 60 | . . . . . . 60 . . . . Successful Hack 57 | . 5 . . . . 3 24 1 24 . Disable Machine 195 | . 30 . . . 15 135 15 . . . Destroy Structure 144 | . . . . . 12 132 . . . . Partial Spotted 45 | . . . . . . 45 . . . . Lose Combat Pursuer 285 | . . 15 . . . 120 120 15 15 . Influence Decreases 1173 | 10 30 25 65 . 122 472 384 1 40 24 Entered New Map 164 | . . 4 40 . . . 107 . 8 5 Time Decay 798 | 10 30 21 25 . 122 352 205 1 32 . Lost Part 149 | . . . . . . 120 10 . . 19 Purge Threat 62 | . . . . . . . 62 . . . Squads Dispatched 11 | . . . . . . 4 4 1 2 . Investigation 2 | . . . . . . . 1 1 . . Extermination 4 | . . . . . . . 3 . 1 . Reinforcement 5 | . . . . . . 4 . . 1 . Assault . | . . . . . . . . . . . Garrison . | . . . . . . . . . . . Intercept . | . . . . . . . . . . . Searches Triggered . | . . . . . . . . . . . Construction Impeded 1 | . . . . . . 1 . . . . Haulers Reinforced . | . . . . . . . . . . . Active Scanning Responses . | . . . . . . . . . . . Cargo Convoy Interrupts . | . . . . . . . . . . . Stealth | -11 -10 -9 -9 -9 -8 -8 -7 -6 -5 -5 --------- Run | Yrd Mat Mat Min Exi Min Mat Fac Fac Fac Gar Distress Signals 4 | . . 1 . . . 3 . . . . Communications Jammed . | . . . . . . . . . . . Distress Signals . | . . . . . . . . . . . Times Spotted 60 | . . 4 . . 4 22 11 5 4 10 Peak Tracking Total 10 | . . 5 . . 4 9 5 4 4 10 Tactical Retreats 13 | . . 1 . . . 5 5 1 1 . Traps | -11 -10 -9 -9 -9 -8 -8 -7 -6 -5 -5 ------- Run | Yrd Mat Mat Min Exi Min Mat Fac Fac Fac Gar Traps Triggered 5 | . . . . . . 2 . . . 3 Indirectly . | . . . . . . . . . . . Trap Hack Attempts . | . . . . . . . . . . . Triggered . | . . . . . . . . . . . Disarmed . | . . . . . . . . . . . Reprogrammed . | . . . . . . . . . . . Reused 6 | . . . . . . 6 . . . . Traps Reconfigurated 6 | . . . . . . 6 . . . . Traps Extracted . | . . . . . . . . . . . Installed . | . . . . . . . . . . . Triggered 6 | . . . . . . 6 . . . . Machines | -11 -10 -9 -9 -9 -8 -8 -7 -6 -5 -5 ---------- Run | Yrd Mat Mat Min Exi Min Mat Fac Fac Fac Gar Machines Disabled 13 | . 2 . . . 1 9 1 . . . Max in Single Turn 3 | . 1 . . . 1 3 1 . . . Garrison Relay 1 | . . . . . . . . . . 1 Machines Repaired . | . . . . . . . . . . . Machines Dismantled . | . . . . . . . . . . . Machines Sabotaged . | . . . . . . . . . . . Overloaded Fab Kills . | . . . . . . . . . . . Hacking | -11 -10 -9 -9 -9 -8 -8 -7 -6 -5 -5 --------- Run | Yrd Mat Mat Min Exi Min Mat Fac Fac Fac Gar Machines Accessed 20 | . 2 . . 5 . 3 6 1 3 . Terminals 9 | . 2 . . . . 2 3 . 2 . Fabricators 1 | . . . . . . . 1 . . . Repair Stations 1 | . . . . . . 1 . . . . Recycling Units 3 | . . . . . . . 2 1 . . Scanalyzers . | . . . . . . . . . . . Garrison Access 1 | . . . . . . . . . 1 . Total Hacks 82 | . 3 . . 50 . 8 13 3 5 . Successful 72 | . 2 . . 50 . 4 10 3 3 . Failed 10 | . 1 . . . . 4 3 . 2 . Catastrophic 2 | . . . . . . 1 1 . . . Database Lockouts . | . . . . . . . . . . . Manual 8 | . . . . 3 . 2 3 . . . Terminals 18 | . 3 . . . . 6 6 . 3 . Fabricators 1 | . . . . . . . 1 . . . Repair Stations 2 | . . . . . . 2 . . . . Recycling Units 9 | . . . . . . . 6 3 . . Scanalyzers . | . . . . . . . . . . . Garrison Access 2 | . . . . . . . . . 2 . Terminal Hacks 60 | . 2 . . 50 . 2 4 . 2 . Record 51 | . . . . 49 . 1 1 . . . Prototype ID Bank 1 | . . . . . . . 1 . . . Open DSF 1 | . . . . . . . . . 1 . Branch Access Points 1 | . 1 . . . . . . . . . Unreport Threat 1 | . . . . . . . 1 . . . Locate Traps 1 | . . . . . . 1 . . . . Recall Investigation 1 | . . . . . . . 1 . . . Zone Layout 2 | . 1 . . . . . . . 1 . Proto ID Catalog 1 | . . . . 1 . . . . . . Fabricator Hacks 1 | . . . . . . . 1 . . . Network Status 1 | . . . . . . . 1 . . . Repair Station Hacks 2 | . . . . . . 2 . . . . Scan Component 1 | . . . . . . 1 . . . . Repair 1 | . . . . . . 1 . . . . Recycling Unit Hacks 8 | . . . . . . . 5 3 . . Recycle Component 2 | . . . . . . . 1 1 . . Process 3 | . . . . . . . 2 1 . . Report Inventory 2 | . . . . . . . 1 1 . . Retrieve Matter 1 | . . . . . . . 1 . . . Scanalyzer . | . . . . . . . . . . . Garrison Access Hacks 1 | . . . . . . . . . 1 . Unlock Access 1 | . . . . . . . . . 1 . Unauthorized Hacks . | . . . . . . . . . . . Terminals . | . . . . . . . . . . . Fabricators . | . . . . . . . . . . . Repair Stations . | . . . . . . . . . . . Recycling Units . | . . . . . . . . . . . Scanalyzers . | . . . . . . . . . . . Garrison Access . | . . . . . . . . . . . Data Cores Recovered . | . . . . . . . . . . . Used . | . . . . . . . . . . . Hacking Detections 8 | . 1 . . . . 2 2 1 2 . Full Trace Events 2 | . . . . . . . 1 1 . . Feedback Events . | . . . . . . . . . . . Feedback Blocked . | . . . . . . . . . . . Robot Schematics Acquired . | . . . . . . . . . . . Robots Built . | . . . . . . . . . . . Authchips . | . . . . . . . . . . . Time . | . . . . . . . . . . . Total Robot Build Rating . | . . . . . . . . . . . Part Schematics Acquired . | . . . . . . . . . . . Parts Built . | . . . . . . . . . . . Authchips . | . . . . . . . . . . . Time . | . . . . . . . . . . . Total Part Build Rating . | . . . . . . . . . . . Parts Repaired 1 | . . . . . . 1 . . . . Time 38 | . . . . . . 38 . . . . Parts Recycled 2 | . . . . . . . 1 1 . . Recycled Matter 165 | . . . . . . . 155 10 . . Retrieved Matter 119 | . . . . . . . 119 . . . Retrieved Components . | . . . . . . . . . . . Parts Scanalyzed . | . . . . . . . . . . . Part Schematics Acquired . | . . . . . . . . . . . Parts Damaged . | . . . . . . . . . . . Bothacking | -11 -10 -9 -9 -9 -8 -8 -7 -6 -5 -5 ------------ Run | Yrd Mat Mat Min Exi Min Mat Fac Fac Fac Gar Used RIF Installer 1 | . . . . . . . . . . 1 Robots Hacked . | . . . . . . . . . . . Non-combat . | . . . . . . . . . . . Combat . | . . . . . . . . . . . Robot Hacks Applied . | . . . . . . . . . . . Relay Couplers Released 5 | . . . . . . . . . . 5 Machine Destruction 5 | . . . . . . . . . . 5 Fabnet Peak Effective % . | . . . . . . . . . . . Robots Rewired . | . . . . . . . . . . . Allies Hacked . | . . . . . . . . . . . Hacks Repelled . | . . . . . . . . . . . Allies | -11 -10 -9 -9 -9 -8 -8 -7 -6 -5 -5 -------- Run | Yrd Mat Mat Min Exi Min Mat Fac Fac Fac Gar Total Allies . | . . . . . . . . . . . Largest Group . | . . . . . . . . . . . Highest-Rated Group . | . . . . . . . . . . . Highest-Rated Ally . | . . . . . . . . . . . Total Orders . | . . . . . . . . . . . Ally Attacks . | . . . . . . . . . . . Total Damage . | . . . . . . . . . . . Kills . | . . . . . . . . . . . Allies Corrupted . | . . . . . . . . . . . Allies Melted . | . . . . . . . . . . . Intel | -11 -10 -9 -9 -9 -8 -8 -7 -6 -5 -5 ------- Run | Yrd Mat Mat Min Exi Min Mat Fac Fac Fac Gar Active Infowar (turns) 5255 | 17 163 62 68 382 415 1054 1573 262 896 363 Optics 2234 | . . . . . . . 713 262 896 363 Sensors 1695 | . . . . . . 230 1465 . . . Terrain 1931 | 17 163 62 68 382 415 824 . . . . Seismic 661 | . 110 62 68 382 . 39 . . . . Robot Analysis Total . | . . . . . . . . . . . Derelict Logs Recovered 1 | . . . 1 . . . . . . . Drone Launches . | . . . . . . . . . . . Drone Recoveries . | . . . . . . . . . . . Exploration | -11 -10 -9 -9 -9 -8 -8 -7 -6 -5 -5 ------------- Run | Yrd Mat Mat Min Exi Min Mat Fac Fac Fac Gar Turns Passed 5463 | 90 163 62 68 382 415 1138 1573 262 896 414 Spaces Moved 5215 | 49 138 39 128 655 325 1094 1459 181 883 264 Core 885 | 4 1 . . . . . 159 34 683 4 Treads 420 | 45 19 . . . . . 209 147 . . Legs . | . . . . . . . . . . . Wheels . | . . . . . . . . . . . Hover 3910 | . 118 39 128 655 325 1094 1091 . 200 260 Flight . | . . . . . . . . . . . Fastest Speed 45 | 50 56 48 48 48 48 45 50 50 50 50 Average Speed 61 | 151 76 48 48 48 48 46 73 139 54 69 Slowest Speed 300 | 160 250 48 48 48 48 111 300 160 70 100 Overloaded Moves . | . . . . . . . . . . . Propulsion Burnouts . | . . . . . . . . . . . Robots Hopped . | . . . . . . . . . . . Potential Cave-ins 7 | . . . . . . 7 . . . . Cave-ins Triggered 2 | . . . . . . 2 . . . . Exploration Rate (%) 34 | 4 31 9 48 92 66 50 32 6 15 26 Regions Visited 10 Branch Regions 3 Pre-discovered Areas 1 | . . . . 1 . . . . . . Known Exits Taken 5 | . . . . . 1 1 1 1 1 . Unknown Exits Taken 5 | 1 1 1 1 1 . . . . . . Scrap Searched 2 | . . . . . 2 . . . . . Spaces Dug 101 | . . . . . . 101 . . . . Terrain Destroyed 206 | . . . . . 12 194 . . . . Melee . | . . . . . . . . . . . Projectile . | . . . . . . . . . . . AOE 206 | . . . . . 12 194 . . . . Terrain Rammed . | . . . . . . . . . . . Walls Destroyed . | . . . . . . . . . . . Machines Disabled . | . . . . . . . . . . . Actions | -11 -10 -9 -9 -9 -8 -8 -7 -6 -5 -5 --------- Run | Yrd Mat Mat Min Exi Min Mat Fac Fac Fac Gar Total 7322 | 58 187 67 134 722 574 1662 1947 186 1299 486 Wait 1838 | . 36 15 5 66 245 457 455 . 386 173 Move 5203 | 48 137 38 127 654 324 1091 1458 180 882 264 Hop . | . . . . . . . . . . . Pick Up 41 | 1 3 3 . 1 . 17 7 1 8 . Fast Attach 28 | 7 3 . 1 . . 11 5 . 1 . Attach 27 | . . 2 . . . 10 7 1 4 3 Detach 8 | . 2 . . . . 1 3 . 2 . Swap 18 | . . 1 . . 1 16 . . . . Drop 30 | . 2 1 1 1 . 17 4 . 4 . Fire 76 | 2 4 7 . . 4 40 7 4 . 8 Melee . | . . . . . . . . . . . Ram 12 | . . . . . . . . . 12 . Kick . | . . . . . . . . . . . Crush 1 | . . . . . . . 1 . . . Escape Stasis 40 | . . . . . . 2 . . . 38 Rewire . | . . . . . . . . . . . Trap . | . . . . . . . . . . . Miscellaneous . | . . . . . . . . . . . Route ------- -11/Scrapyard -10/Materials (discovered 3 exits: [*Mat] / *Min x2) -9/Materials -9/Mines (discovered 2 exits: Mat / *Exi) -9/Exiles (discovered 2 exits: [*Min x2]) -8/Mines -8/Materials -7/Factory (discovered 2 exits: *Fac / *Sto) -6/Factory -5/Factory -5/Garrison History --------- Turn | Location | Event 3 | -11/Scrapyard | Discovered new exit (range 15) 91 | -11/Scrapyard | Entered Materials 91 | -10/Materials | Discovered new exit (range 7) 112 | -10/Materials | Identified exit to Mines 240 | -10/Materials | Discovered new exit (range 14) 254 | -10/Materials | Entered another Materials area 254 | -9/Materials | Evolved 2 slots: Propulsion x2 268 | -9/Materials | Discovered new exit (range 15) 316 | -9/Materials | Entered Mines 321 | -9/Mines | Build established: Mutant 329 | -9/Mines | Received a Rocket Launcher from a helpful Derelict 335 | -9/Mines | Met a Derelict bent on vengeance 338 | -9/Mines | Identified exit to Materials 363 | -9/Mines | Assembled infested the area 383 | -9/Mines | Discovered new exit (range 5) 384 | -9/Mines | Entered Exiles 396 | -9/Exiles | Met 8R-AWN 405 | -9/Exiles | Met EX-HEX 424 | -9/Exiles | Met EX-DEC 441 | -9/Exiles | Learned location of Zion (-6) 464 | -9/Exiles | Discovered new exit (range 12) 493 | -9/Exiles | Met EX-BIN 505 | -9/Exiles | Aligned with FarCom system 506 | -9/Exiles | Given EX-Vault access code 523 | -9/Exiles | Opened EX-Vault 613 | -9/Exiles | Found Trap Reconfigurator 624 | -9/Exiles | Warned to stay clear of 0b10 Research branches 667 | -9/Exiles | Visited The Gauntlet 760 | -9/Exiles | Discovered new exit (range 15) 766 | -9/Exiles | Left Exiles lab with Trap Reconfigurator 766 | -9/Exiles | Entered Mines 1072 | -8/Mines | Build established: Scout 1165 | -8/Mines | Discovered exit to Materials (range 5) 1181 | -8/Mines | Entered Materials 1181 | -8/Materials | Evolved 2 slots: Power x1, Utility x1 1743 | -8/Materials | Repaired Hpw. Shotgun 1768 | -8/Materials | Crushed by falling debris 1769 | -8/Materials | System corruption reached 10% 1799 | -8/Materials | Lost 3 parts (1p1n1u) 2168 | -8/Materials | Crushed by falling debris 2199 | -8/Materials | Lost 4 parts (2n2u) 2306 | -8/Materials | Discovered new exit (range 6) 2317 | -8/Materials | Identified exit to Factory 2319 | -8/Materials | Entered Factory 2319 | -7/Factory | Evolved 2 slots: Utility x1, Weapon x1 2323 | -7/Factory | Lost 3 parts (1p1n1w) 2332 | -7/Factory | Discovered new exit (range 14) 2339 | -7/Factory | Identified exit to Storage 3198 | -7/Factory | Lost 5 parts (1p2n1u1w) 3228 | -7/Factory | Discovered new exit (range 4) 3229 | -7/Factory | Identified exit to Factory 3649 | -7/Factory | Build established: Mutant 3892 | -7/Factory | Entered another Factory area 3892 | -6/Factory | Evolved 2 slots: Power x1, Weapon x1 4151 | -6/Factory | Discovered new exit (range 6) 4154 | -6/Factory | Identified exit to Factory 4154 | -6/Factory | Entered another Factory area 4154 | -5/Factory | Evolved 2 slots: Propulsion x2 5049 | -5/Factory | Identified exit to Garrison 5050 | -5/Factory | Entered Garrison 5210 | -5/Garrison | Triggered checkpoint 5291 | -5/Garrison | Heavy support dispatched to Factory 5339 | -5/Garrison | Spotted B-75 Beast 5410 | -5/Garrison | Installed Relay Interface Framework 5426 | -5/Garrison | Core integrity fell below 50% 5436 | -5/Garrison | Garrison Relay disabled 5455 | -5/Garrison | Core integrity fell below 20% 5464 | -5/Garrison | Destroyed by H-66 Slayer with Gauss Rifle Last Messages --------------- 05413_ Penetrated by Slug. 05413_ Visual Processing Unit destroyed. 05413_ Slug penetrates H-71 Marshal. 05424_ Gyrokinetic Inverter destroyed. 05436_ Garrison Relay disabled. 05436_ Relay Coupler [NC] tumbles out of relay unit. 05436_ Relay Coupler [Sentry] tumbles out of relay unit. 05436_ Relay Coupler [Grunt] tumbles out of relay unit. 05436_ Relay Coupler [Duelist] tumbles out of relay unit. 05436_ Relay Coupler [Brawler] tumbles out of relay unit. 05438_ Imp. Arc Projector destroyed. 05442_ S-27 Virus destroyed. 05445_ Gyrokinetic Inverter destroyed. 05445_ Acquired 25 matter. 05447_ S-27 Virus destroyed. 05449_ Slug penetrates Reinforced Barrier. 05451_ Slug penetrates G-50 Soldier. 05455_ KE Penetrator destroyed. 05464_ System corrupted: Component data lost. 05464_ Penetrated by Slug. Map ----- +----------------------------------------------------+ | | | | | | | ?????????????????????????????????????????????????? | | ?????????????????????????????????????????????????? | | ?????????????????????????????????????????????????? | | ?????????????????????????????????????????????????? | | ?????????????????????????????????????????????????? | | ?????????????????????????????????????????????????? | | ?????????????????????????????????????????????????? | | ?????????????????????????????????????????????????? | | ?????????????????????????????????????????????????? | | ?????????????????????????????????????????????????? | | ?????????????????????????????????????????????????? | | ?????????????????????????????????????????????????? | | ?????????????????????????????????????????????????? | | ?????????????????????????????????????????????????? | | ?????????????????????????????????????????????????? | | ?????????????????????????????????????????????????? | | ?????????????????????????????????????????????????? | | ?????????????????????????????????????????????????? | | ?????????????????????????###?????????????????????? | | ????????????????????????##"#?????????????????????? | | ????????????????????????#s"#?????????????????????? | | ????????????????????????#gs#?????????????????????? | | ????????????????????????#@g#?????????????????????? | | ????????????????????????#hg#?????????????????????? | | ????????????????????????#H##?????????????????????? | | ????????????????????????BB#??????????????????????? | | ???????????????????#####BB#??????????????????????? | | ???????????????????#"""#; #??????????????????????? | | ???????????????????#" "#; #??????????????????????? | | ???????????????????#" "#; #??????????????????????? | | ???????????????????#" "#; #??????????????????????? | | ???????????????????# #; #??????????????????????? | | ???????????????????## ##; ########## #??????????? | | ????????????????????# #??????????? | | ????????????????????# ^ #??????????? | | ????????????????????# #####+##### ##????????????? | | ????????????????????# #?????????????????????????? | | ????????????????????# #?????????????????????????? | | ????????????????????# #?????????????????????????? | | ????????????????????# +?????????????????????????? | | ??????????????####??# #?????????????????????????? | | ??????????????# ?# ##????????????????????????? | | ?????????###### ## "#????????????????????????? | | ????????## #????????????????????????? | | ????? % #????????????????????????? | | ????? #????????????????????????? | | ???????### ## ## #????????????????????????? | +----------------------------------------------------+ Best States ------------- Heat Dissipation 40 Energy Generation 19 Energy Capacity 400 Matter Stores 300 Matter Capacity 300 Sight Range 18 Robot Scan Range 15 Terrain Scan Range 16 Terrain Scan Density 110 Armor Coverage 225 Evasion (%) 64 Recoil Reduction 2 Matter Filtering 30 Defensive Hacking 10 Item Schematics ----------------- None Robot Schematics ------------------ None Fabricated ------------ Nothing Repaired ---------- Hpw. Shotgun | 74% | -8/Materials Alien Tech Used ----------------- None Achievements -------------- Librarian Challenges ------------ None Game ------ Seed ConceptFissionWarhead Manual? 0 Play Time 01:13:32 Cumulative 20.7 hours Start 2025.10.20 @ 21:28:44 End 2025.10.20 @ 22:42:35 Sessions 1 Manual Loads 0 Difficulty Rogue Special Mode None Game No. 39 Rogue 39 Adventurer 0 Explorer 0 Win Type - Total 0 Types 0/0/0/0/0/0/0/0/0/0 Lore% 10 Gallery% 22 Achievement% 21 Wizard Run 0 Options --------- Layout 0 ASCII 0 Keyboard 1 Movement Numpad Keybinds 0 Fullscreen 2 Font 20/Terminus Map View 96x60 Zoom Use 0% Tactical HUD 1 Map Filters NONE Filters NONE Steam 1 RUN: fcd9dbff-8230-4abe-a3d2-0dcbe79fc627